bitfinex-derivatives/quotes_SOLF0:USTF0_20251117
["timestamp","ask_amount","ask_price","bid_price","bid_amount"]
[1763407295422,0.05420429,129.92,129.91,3.4]
[1763407295724,0.05420429,129.92,129.9,0.05273444]
[1763407295725,8.71872609,129.98,129.9,3.45044113]
[1763407295921,8.71872609,129.98,129.91,3.4]
[1763407296718,0.05841413,129.96,129.94,3.4]
[1763407296925,0.05047366,129.96,129.94,3.45013279]
[1763407297623,8.71872609,130.01,129.94,3.45013279]
[1763407298619,0.04246153,129.99,129.94,3.45013279]
[1763407299524,8.71872609,130.08,129.97,3.4]
[1763407300423,8.71872609,130.08,130.01,0.05374725]
[1763407301427,8.71872609,130.08,130.01,3.45374725]
[1763407302320,8.71872609,130.02,129.79,3.4]
[1763407302524,8.71872609,129.9,129.81,3.4]
[1763407302922,8.71872609,129.87,129.81,3.4]
[1763407303120,8.71872609,129.87,129.77,3.4]
[1763407303321,0.05152018,129.83,129.81,0.05160096]
[1763407303527,0.05152018,129.83,129.81,3.45160096]
[1763407304424,8.71872609,129.9,129.81,3.45160096]
[1763407304622,8.71872609,129.9,129.81,3.4]
[1763407305429,8.71872609,129.9,129.84,0.05663315]
[1763407309727,8.71872609,129.9,129.84,3.45663315]
[1763407316243,8.71872609,129.9,129.84,0.05663315]
[1763407316742,8.71872609,129.9,129.84,3.45663315]
[1763407317747,8.71872609,129.9,129.84,0.05663315]
[1763407320142,8.71872609,129.87,129.84,0.05663315]
[1763407320448,8.71872609,129.87,129.84,0.04959127]
[1763407321247,8.71872609,129.92,129.84,0.04959127]
[1763407321542,8.71872609,129.89,129.87,0.05523212]
[1763407321752,8.71872609,129.89,129.87,0.05626591]
[1763407321935,8.71872609,129.89,129.81,3.4]
[1763407322137,8.71872609,129.89,129.75,8.71872609]
[1763407322339,191.70179818,130.0,129.78,8.71872609]
[1763407322551,191.70179818,130.0,129.74,6.41]
[1763407322552,8.71872609,129.94,129.74,36.6719681]
[1763407322751,8.71872609,129.94,129.8,8.71872609]
[1763407323048,0.05849298,129.88,129.86,0.05839679]
[1763407323245,0.05070988,129.88,129.86,0.05421059]
[1763407323451,8.76943597,129.88,129.74,15.12872609]
[1763407323649,8.71872609,129.88,129.74,15.12872609]
[1763407324249,8.71872609,129.85,129.76,3.37]
[1763407324452,0.0509124,129.82,129.79,3.42902638]
[1763407325151,0.0509124,129.82,129.79,0.05902638]
[1763407325647,0.0509124,129.82,129.79,3.42902638]
[1763407326248,0.0509124,129.82,129.79,0.05902638]
[1763407326449,0.0509124,129.82,129.79,3.42902638]
[1763407327356,0.0509124,129.82,129.79,0.05902638]
[1763407327855,0.0509124,129.82,129.79,3.42902638]
[1763407328150,0.0509124,129.82,129.79,0.05902638]
[1763407329550,0.0509124,129.82,129.79,3.42902638]
[1763407331364,8.71872609,129.91,129.8,3.37]
[1763407332158,8.71872609,129.91,129.82,3.37]
[1763407332353,0.05196941,129.88,129.85,0.05039575]
[1763407332554,8.7706955,129.88,129.85,0.05039575]
[1763407334454,0.05196941,129.88,129.85,0.05039575]
[1763407334856,0.05196941,129.88,129.85,3.42039575]
[1763407335655,8.71872609,130.0,129.86,3.37]
[1763407335858,8.71872609,129.97,129.86,3.37]
[1763407336049,8.71872609,130.0,129.92,3.37]
[1763407336664,6.98307209,130.07,129.95,0.05101467]
[1763407336850,32.50512772,130.09,129.92,3.37]
[1763407336851,8.71872609,130.0,129.92,3.37]
[1763407337051,15.70179818,130.08,129.95,0.05266703]
[1763407337052,23.15,130.02,129.95,0.05266703]
[1763407337262,8.71872609,129.97,129.88,3.37]
[1763407337455,8.71872609,129.97,129.91,0.05659174]
[1763407339859,8.71872609,129.98,129.91,0.05659174]
[1763407340048,8.71872609,129.98,129.93,0.05357614]
[1763407340350,8.71872609,129.98,129.93,3.56357614]
[1763407340560,8.71872609,130.0,129.93,3.56357614]
[1763407340748,8.71872609,130.0,129.95,0.05000095]
[1763407340954,6.98307209,130.07,129.95,0.05000095]
[1763407341154,8.71872609,130.02,130.0,0.05780772]
[1763407341353,8.71872609,130.02,130.0,0.04914511]
[1763407342256,8.71872609,130.02,129.93,3.51]
[1763407342484,8.71872609,129.99,129.89,3.51]
[1763407342853,8.71872609,129.96,129.89,3.51]
[1763407343566,0.05619742,129.94,129.91,0.04873807]
[1763407345951,13.98838057,130.08,129.91,0.04873807]
[1763407345952,30.13307209,130.06,129.91,3.55873807]
[1763407346156,8.71872609,130.0,129.91,3.51]
[1763407346368,8.71872609,130.03,129.91,3.51]
[1763407346553,8.71872609,130.03,129.94,6.933]
[1763407346861,8.71872609,130.03,129.91,3.51]
[1763407347065,8.71872609,130.0,129.97,0.05479906]
[1763407347252,8.71872609,130.0,129.97,0.05172217]
[1763407347657,8.71872609,130.0,129.87,3.51]
[1763407347658,10.25872609,130.0,129.87,3.51]
[1763407347857,7.01173603,130.03,129.87,3.51]
[1763407347858,8.71872609,129.97,129.87,3.51]
[1763407348664,0.05251459,129.93,129.91,0.053572]
[1763407348865,0.05251459,129.93,129.91,3.563572]
[1763407350075,8.71872609,130.0,129.92,3.51]
[1763407350863,13.62776953,130.0,129.95,0.05802688]
[1763407354465,13.62776953,129.97,129.95,0.05802688]
[1763407355979,13.62776953,130.0,129.95,0.05802688]
[1763407356565,13.62776953,130.03,129.95,0.05802688]
[1763407356766,13.62776953,130.03,129.98,0.05160246]
[1763407357877,13.62776953,130.06,129.98,0.05160246]
[1763407358071,13.62776953,130.06,130.01,0.05831435]
[1763407359278,13.62776953,130.03,129.91,3.45]
[1763407359868,13.62776953,130.03,129.9,6.41]
[1763407359869,13.62776953,130.03,129.93,3.45]
[1763407360073,23.15,130.06,129.93,3.45]
[1763407360371,71.7496091,130.09,129.93,3.45]
[1763407360372,0.04880687,130.01,129.98,0.05119515]
[1763407360570,0.04862069,130.01,129.98,0.05856096]
[1763407362584,0.04862069,130.01,129.99,10.3804]
[1763407362872,0.04862069,130.01,129.99,6.9304]
[1763407363179,13.62776953,130.08,130.0,10.3798]
[1763407363573,36.77776953,130.08,129.93,3.45]
[1763407363775,36.77776953,130.08,129.97,6.9312]
[1763407363974,13.62776953,130.05,130.01,0.05258172]
[1763407364179,36.77776953,130.05,130.01,0.05258172]
[1763407364775,23.2022518,130.1,129.9,6.41]
[1763407364776,36.77776953,130.02,129.9,6.41]
[1763407365079,13.62776953,130.07,129.92,3.45]
[1763407365274,13.62776953,130.07,129.97,3.45]
[1763407365879,0.05563515,130.03,130.01,0.05016895]
[1763407371274,0.05563515,130.03,130.01,3.50016895]
[1763407371671,191.40568744,130.11,130.01,5.04016895]
[1763407371870,191.40568744,130.11,130.02,3.45]
[1763407372469,191.40568744,130.11,130.03,3.45]
[1763407372770,54.80776953,130.13,130.06,0.05267141]
[1763407373072,23.15,130.16,130.06,6.97917141]
[1763407373073,13.62776953,130.16,130.06,6.97917141]
[1763407373277,13.62776953,130.18,130.1,0.05440452]
[1763407373470,64.33,130.17,130.04,3.45]
[1763407373677,36.77776953,130.15,130.04,3.45]
[1763407374379,13.62776953,130.12,130.04,3.45]
[1763407374572,0.05356218,130.09,130.07,0.05661043]
[1763407378073,0.05356218,130.09,130.07,3.50661043]
[1763407378471,0.05356218,130.09,130.07,0.05661043]
[1763407379274,38.37133171,130.09,129.99,3.45]
[1763407379577,13.62776953,130.09,129.99,3.45]
[1763407380175,23.15,130.01,129.9,9.86]
[1763407380379,0.05729034,129.97,129.94,0.05891647]
[1763407381291,0.05729034,129.97,129.94,3.50891647]
[1763407381478,55.14838057,130.08,129.95,3.45]
[1763407381479,7.02111343,130.06,129.95,3.45]
[1763407381685,50.51879089,130.08,129.96,3.45]
[1763407381686,54.78776953,130.08,129.96,3.45]
[1763407381982,30.17111343,130.07,129.96,3.45]
[1763407382287,23.15,130.07,129.96,3.45]
[1763407382492,0.05822473,130.03,130.0,0.05326523]
[1763407387888,0.05822473,130.03,130.0,3.34326523]
[1763407388393,23.15,130.09,130.0,0.05326523]
[1763407388595,13.62776953,130.1,130.0,3.29]
[1763407389194,7.02111343,130.13,129.96,13.62776953]
[1763407389195,13.62776953,130.13,130.05,3.29]
[1763407389598,13.62776953,130.16,130.08,0.05410026]
[1763407389898,13.62776953,130.16,130.11,0.05654493]
[1763407390297,23.15,130.15,130.11,0.05654493]
[1763407391197,13.62776953,130.16,130.05,3.29]
[1763407391198,36.77776953,130.13,130.05,3.29]
[1763407391899,36.77776953,130.13,129.98,3.29]
[1763407392101,0.05038889,130.07,130.04,0.05282475]
[1763407392597,0.05038889,130.07,130.04,3.34282475]
[1763407393996,29.75429823,130.16,130.04,4.88282475]
[1763407393997,43.38206776,130.16,130.04,4.88282475]
[1763407394199,43.38206776,130.16,129.99,13.62776953]
[1763407394200,13.62776953,130.17,130.05,3.29]
[1763407394502,13.62776953,130.19,130.05,3.29]
[1763407395008,13.62776953,130.19,130.11,0.05750902]
[1763407395196,36.77776953,130.19,130.14,0.05587222]
[1763407396088,192.59721018,130.22,130.14,3.34587222]
[1763407396293,23.15,130.21,130.17,0.0551389]
[1763407397100,192.59721018,130.22,130.17,0.0551389]
[1763407397301,23.15,130.21,130.17,0.0551389]
[1763407397698,192.59721018,130.22,130.17,0.0551389]
[1763407397907,192.59721018,130.22,130.17,3.4551389]
[1763407399611,13.62776953,130.26,130.17,3.4551389]
[1763407399798,13.62776953,130.26,130.2,0.05349825]
[1763407400509,13.62776953,130.23,130.2,0.05349825]
[1763407402104,13.62776953,130.25,130.2,0.05349825]
[1763407402305,13.62776953,130.25,130.2,3.45349825]
[1763407402517,13.62776953,130.3,130.2,3.45349825]
[1763407402699,13.62776953,130.3,130.24,3.45889028]
[1763407403006,41.26,130.31,130.26,3.45488504]
[1763407403201,41.26,130.31,130.17,13.62776953]
[1763407403404,41.26,130.31,130.22,3.4]
[1763407403704,1.33620028,130.35,130.23,3.45124743]
[1763407403911,13.62776953,130.34,130.28,0.05291822]
[1763407404111,13.62776953,130.34,130.3,0.0582165]
[1763407404409,13.62776953,130.34,130.31,0.05903242]
[1763407404602,13.62776953,130.34,130.31,0.05840453]
[1763407406508,37.01175786,130.36,130.31,0.05840453]
[1763407407110,13.62776953,130.36,130.31,0.05840453]
[1763407407310,41.26,130.37,130.31,3.45840453]
[1763407408405,41.26,130.37,130.31,0.05840453]
[1763407408610,13.62776953,130.35,130.31,0.05840453]
[1763407409201,36.77776953,130.35,130.31,0.05840453]
[1763407410812,31.8017003,130.33,130.23,3.4]
[1763407411115,23.15,130.33,130.23,3.4]
[1763407411319,8.6517003,130.33,130.23,3.4]
[1763407411816,0.05397282,130.29,130.27,3.45148402]
[1763407414017,0.00397282,130.29,130.27,3.45148402]
[1763407414218,64.41,130.37,130.27,3.45148402]
[1763407414219,8.6517003,130.36,130.27,3.45148402]
[1763407414408,8.6517003,130.36,130.27,3.4]
[1763407415213,8.6517003,130.36,130.3,0.04985666]
[1763407415713,31.8017003,130.36,130.3,0.04985666]
[1763407415906,8.6517003,130.33,130.3,0.04985666]
[1763407416307,23.15,130.36,130.3,3.31985666]
[1763407416714,49.9117003,130.37,130.3,3.31985666]
[1763407417417,8.6517003,130.37,130.3,3.31985666]
[1763407417720,8.6517003,130.4,130.3,3.31985666]
[1763407418011,8.6517003,130.43,130.35,3.27]
[1763407418202,8.6517003,130.43,130.39,3.27]
[1763407418407,8.6517003,130.46,130.39,3.27]
[1763407418714,8.6517003,130.46,130.41,3.32858442]
[1763407418916,8.6517003,130.46,130.42,0.04857241]
[1763407419210,8.6517003,130.49,130.42,3.31857241]
[1763407419418,31.59823657,130.49,130.44,0.05412195]
[1763407419610,8.6517003,130.46,130.45,0.05917751]
[1763407419811,8.6517003,130.46,130.39,3.27]
[1763407420519,8.6517003,130.46,130.32,8.6517003]
[1763407420520,8.6517003,130.43,130.33,3.27]
[1763407420818,8.6517003,130.43,130.37,3.32716118]
[1763407420819,0.05584881,130.39,130.37,3.32716118]
[1763407421005,0.05651723,130.39,130.37,3.32902673]
[1763407421807,0.05651723,130.39,130.37,0.05902673]
[1763407422621,0.05651723,130.39,130.37,3.32902673]
[1763407426812,0.05651723,130.39,130.37,0.05902673]
[1763407427014,0.05651723,130.39,130.3,3.27]
[1763407427311,31.8017003,130.4,130.3,3.27]
[1763407427621,8.6517003,130.37,130.3,3.27]
[1763407428122,8.6517003,130.4,130.33,3.27]
[1763407429114,0.0562483,130.38,130.35,3.32187754]
[1763407429318,0.0562483,130.38,130.35,0.0497983]
[1763407429319,0.0522876,130.38,130.35,0.0497983]
[1763407429717,0.0522876,130.38,130.35,3.3197983]
[1763407432426,0.0522876,130.38,130.35,0.0497983]
[1763407432621,0.0522876,130.38,130.35,3.3197983]
[1763407434423,0.0522876,130.38,130.35,0.0497983]
[1763407434828,8.6517003,130.37,130.35,0.0497983]
[1763407435720,0.0522876,130.38,130.35,0.0497983]
[1763407436027,0.0522876,130.38,130.35,3.3197983]
[1763407436426,8.6517003,130.44,130.35,3.3197983]
[1763407436629,8.6517003,130.44,130.35,3.27]
[1763407437224,23.15,130.43,130.35,3.27]
[1763407437422,23.18488668,130.4,130.38,0.05865866]
[1763407437629,23.18488668,130.4,130.38,0.0580256]
[1763407438222,23.18488668,130.4,130.33,9.59]
[1763407438630,23.15,130.37,130.33,6.32]
[1763407439315,0.04981072,130.36,130.34,0.04911384]
[1763407439714,8.6517003,130.35,130.34,0.04911384]
[1763407440626,23.25737983,130.49,130.34,3.31911384]
[1763407440819,8.6517003,130.43,130.35,3.27]
[1763407441029,8.6517003,130.4,130.33,6.32]
[1763407441625,23.15,130.39,130.33,6.32]
[1763407441826,0.04310156,130.38,130.35,0.05062866]
[1763407442331,23.15,130.36,130.35,0.05062866]
[1763407443322,8.69480186,130.38,130.35,0.05062866]
[1763407443527,0.04310156,130.38,130.35,0.05062866]
[1763407444320,8.6517003,130.36,130.35,0.05062866]
[1763407444637,31.8017003,130.36,130.33,6.32]
[1763407445019,31.8017003,130.36,130.26,3.41]
[1763407445231,8.6517003,130.39,130.22,3.41]
[1763407445232,23.15,130.32,130.22,3.41]
[1763407445540,0.05536543,130.28,130.26,0.05662571]
[1763407446831,8.6517003,130.27,130.26,0.05662571]
[1763407447035,31.8017003,130.27,130.26,0.05662571]
[1763407447427,8.6517003,130.27,130.26,0.05662571]
[1763407448223,10.1917003,130.27,130.16,3.41]
[1763407448425,8.6517003,130.24,130.16,3.41]
[1763407448630,31.8017003,130.24,130.16,3.41]
[1763407449238,8.70963946,130.21,130.19,0.0535464]
[1763407449531,8.71004323,130.21,130.19,0.05168436]
[1763407453034,0.05834293,130.21,130.19,0.05168436]
[1763407453837,8.71004323,130.21,130.19,0.05168436]
[1763407454439,8.71004323,130.21,130.12,3.41]
[1763407454628,8.6517003,130.21,130.12,3.41]
[1763407455542,0.04919746,130.18,130.15,0.05909613]
[1763407459736,31.85089776,130.18,130.15,0.05909613]
[1763407460152,31.85089776,130.18,130.08,3.45]
[1763407460355,31.8017003,130.18,130.08,3.45]
[1763407460546,64.20896252,130.28,130.08,3.45]
[1763407460848,8.6517003,130.2,130.08,3.45]
[1763407461239,0.05111301,130.15,130.13,0.0558308]
[1763407461451,0.05565949,130.15,130.13,0.0558308]
[1763407462043,0.05565949,130.15,130.13,3.5058308]
[1763407463037,0.05565949,130.15,130.13,0.0558308]
[1763407466247,0.05565949,130.15,130.13,3.5058308]
[1763407466446,23.15,130.23,130.13,3.5058308]
[1763407466651,23.15,130.2,130.13,3.45]
[1763407466851,8.6517003,130.21,130.13,3.45]
[1763407467052,8.6517003,130.24,130.13,3.45]
[1763407467250,8.6517003,130.25,130.13,3.45]
[1763407467443,0.0535099,130.2,130.18,3.50831183]
[1763407467648,0.0579091,130.2,130.18,3.50831183]
[1763407468248,0.0579091,130.2,130.18,0.05831183]
[1763407470645,0.0579091,130.2,130.18,3.50831183]
[1763407471346,31.72066282,130.28,130.19,3.45]
[1763407471544,8.6517003,130.28,130.19,3.45]
[1763407472454,0.05320889,130.25,130.22,0.0499872]
[1763407475852,0.05320889,130.25,130.16,3.51]
[1763407475853,23.15,130.24,130.13,3.51]
[1763407476962,23.15,130.24,130.17,0.049316]
[1763407476963,0.05009164,130.2,130.17,0.049316]
[1763407483162,23.15,130.18,130.17,0.049316]
[1763407483464,23.15,130.18,130.08,3.51]
[1763407484376,0.05823047,130.14,130.12,0.05372653]
[1763407484767,0.05823047,130.14,130.05,3.51]
[1763407484768,23.15,130.12,130.05,3.51]
[1763407484968,23.15,130.12,130.0,3.51]
[1763407485474,23.15,130.09,130.0,3.51]
[1763407485666,0.05391881,130.06,130.03,0.05897048]
[1763407486079,23.20391881,130.06,130.03,0.05897048]
[1763407487475,46.3301989,130.06,130.03,0.05897048]
[1763407488376,23.15,130.03,129.93,3.51]
[1763407488575,23.15,130.0,129.93,3.51]
[1763407489171,13.57012445,130.04,129.93,3.51]
[1763407489378,0.05912119,130.0,129.97,3.56613153]
[1763407489674,0.0522423,130.0,129.97,3.55884804]
[1763407489875,0.0522423,130.0,129.97,5.09884804]
[1763407490075,13.57012445,130.1,129.99,3.51]
[1763407490275,23.15,130.09,129.99,3.51]
[1763407490882,46.33325512,130.09,129.99,3.51]
[1763407491071,0.05669644,130.05,130.03,0.05885341]
[1763407497091,0.05669644,130.05,130.03,3.56885341]
[1763407497378,0.05669644,130.05,130.03,0.05885341]
[1763407502377,0.05669644,130.05,129.92,3.51]
[1763407502573,36.72012445,130.03,129.92,3.51]
[1763407503489,0.0522027,129.99,129.96,0.04921061]
[1763407504085,23.2022027,129.99,129.96,0.04921061]
[1763407504387,0.0522027,129.99,129.96,3.31921061]
[1763407505086,13.57012445,130.08,129.96,3.31921061]
[1763407505279,13.57012445,130.08,129.98,3.27]
[1763407505479,20.36,130.12,129.98,3.27]
[1763407505480,23.15,130.1,129.98,3.27]
[1763407506288,0.05394029,130.05,130.03,0.05595512]
[1763407506485,0.05352942,130.05,130.03,3.32354445]
[1763407507978,0.05352942,130.05,130.03,0.05354445]
[1763407509086,0.05352942,130.05,130.03,3.32354445]
[1763407509685,45.72689961,130.1,130.03,3.32354445]
[1763407510587,0.05148122,130.08,130.03,3.32354445]
[1763407510788,0.05148122,130.08,130.05,3.27]
[1763407510983,0.04958012,130.08,130.05,3.32871777]
[1763407511593,23.15,130.13,130.07,3.27]
[1763407511792,23.15,130.14,130.07,3.27]
[1763407512695,0.049423,130.12,130.09,0.05125311]
[1763407513296,0.049423,130.12,130.09,3.32125311]
[1763407514194,0.049423,130.12,130.09,0.05125311]
[1763407514380,0.049423,130.12,130.09,3.32125311]
[1763407515588,46.24982023,130.17,130.09,3.32125311]
[1763407515589,46.21691703,130.17,130.09,3.32125311]
[1763407515897,23.1170968,130.17,130.09,3.27]
[1763407516487,0.0520311,130.14,130.12,0.05821342]
[1763407517291,0.0520311,130.14,130.12,3.32821342]
[1763407518490,23.1170968,130.19,130.12,3.32821342]
[1763407518790,23.1170968,130.19,130.12,3.27]
[1763407519498,0.05479906,130.17,130.14,3.5807824]
[1763407521389,0.05479906,130.17,130.14,0.0507824]
[1763407521593,23.17189586,130.17,130.14,0.0507824]
[1763407522394,23.17189586,130.17,130.14,3.5807824]
[1763407522395,0.05479906,130.17,130.14,3.5807824]
[1763407522808,0.05479906,130.17,130.14,0.0507824]
[1763407522994,23.20479906,130.17,130.14,0.0507824]
[1763407523195,23.20479906,130.17,130.08,3.53]
[1763407523490,23.15,130.11,130.04,3.53]
[1763407523699,23.15,130.11,130.01,3.53]
[1763407523898,41.87012445,130.14,130.01,3.53]
[1763407523899,23.15,130.08,130.01,3.53]
[1763407524199,0.05376317,130.06,130.03,0.05710054]
[1763407524400,0.05376317,130.06,130.03,3.58710054]
[1763407525302,0.05376317,130.06,130.03,0.05710054]
[1763407525598,13.62388762,130.06,129.95,3.53]
[1763407525794,13.57012445,130.06,129.95,3.53]
[1763407525998,13.57012445,130.09,129.95,3.53]
[1763407526199,13.57012445,130.09,129.99,3.53]
[1763407526395,14.26,130.15,129.99,3.53]
[1763407526396,13.57012445,130.12,130.03,0.0530167]
[1763407526594,0.04865094,130.09,130.04,3.53]
[1763407526902,0.05340984,130.08,130.06,0.05879788]
[1763407527100,0.05102453,130.08,130.06,0.0521297]
[1763407527698,23.20102453,130.08,130.06,0.0521297]
[1763407528005,0.05102453,130.08,130.06,0.0521297]
[1763407534410,0.05102453,130.08,130.06,3.3121297]
[1763407535413,0.05102453,130.08,130.06,0.0521297]
[1763407537011,0.05102453,130.08,130.06,3.3121297]
[1763407539416,0.05102453,130.08,130.06,0.0521297]
[1763407545220,0.4478703,130.05,130.03,3.26]
[1763407545420,31.83357502,130.09,130.03,3.26]
[1763407546229,0.05101446,130.07,130.05,0.05619001]
[1763407547935,0.05101446,130.07,129.97,3.26]
[1763407548124,31.83357502,130.08,129.97,3.26]
[1763407548434,8.68357502,130.05,129.97,3.26]
[1763407548637,31.83357502,130.05,129.97,3.26]
[1763407549020,0.05077662,130.02,130.0,0.05093299]
[1763407549226,8.73435164,130.02,130.0,0.04910927]
[1763407549427,23.15,130.01,129.94,3.26]
[1763407550340,31.83357502,129.99,129.94,3.26]
[1763407550521,0.05572498,129.98,129.95,0.0518566]
[1763407551830,0.05572498,129.98,129.95,3.3118566]
[1763407552831,8.68357502,130.05,129.95,4.8518566]
[1763407553030,8.68357502,130.05,129.96,3.26]
[1763407553349,8.68357502,130.07,129.96,3.26]
[1763407553730,0.05509061,130.03,130.0,0.04907709]
[1763407553931,23.17509061,130.03,130.0,0.04907709]
[1763407554434,0.05509061,130.03,130.0,0.04907709]
[1763407554628,8.68357502,130.01,129.93,3.26]
[1763407555531,0.05528363,129.98,129.96,0.05145989]
[1763407556034,0.05528363,129.98,129.96,3.31145989]
[1763407557123,23.56571129,130.04,129.96,4.85145989]
[1763407557325,23.56571129,130.04,129.92,6.934]
[1763407557326,8.68357502,130.05,129.97,3.26]
[1763407558130,0.05631636,130.02,130.0,0.05626987]
[1763407558527,0.05631636,130.02,130.0,3.31626987]
[1763407559038,8.68357502,130.07,130.0,3.31626987]
[1763407559739,31.80357502,130.07,130.0,3.31626987]
[1763407560136,0.05114979,130.05,130.0,3.31626987]
[1763407560439,22.89062937,130.05,130.0,3.31626987]
[1763407560633,0.05114979,130.05,130.0,3.31626987]
[1763407563334,23.20230157,130.05,130.0,3.31626987]
[1763407563641,0.05114979,130.05,130.0,3.31626987]
[1763407567244,23.12,130.04,130.0,3.31626987]
[1763407567840,0.05114979,130.05,130.0,3.31626987]
[1763407569437,0.05114979,130.05,130.0,3.58626987]
[1763407571347,23.12,130.12,130.02,3.53]
[1763407571541,46.39252258,130.12,130.02,3.53]
[1763407571738,46.39252258,130.12,130.03,6.9285]
[1763407571943,23.12,130.12,130.04,3.53]
[1763407572141,23.12,130.17,130.05,3.53]
[1763407572348,23.12,130.18,130.1,3.53]
[1763407572553,23.12,130.16,130.1,3.53]
[1763407573545,0.04874438,130.14,130.12,3.58606218]
[1763407573749,0.05605469,130.14,130.12,3.58606218]
[1763407574940,0.05605469,130.14,130.12,0.05606218]
[1763407575136,1.59605469,130.14,130.12,0.05606218]
[1763407576547,0.05605469,130.14,130.12,3.58606218]
[1763407577940,0.05605469,130.14,130.12,0.05606218]
[1763407578750,0.05605469,130.14,130.12,3.42606218]
[1763407580548,0.05605469,130.14,130.12,0.05606218]
[1763407588357,8.73962971,130.14,130.06,3.37]
[1763407588558,23.12,130.13,130.06,3.37]
[1763407588756,23.12,130.13,130.0,3.37]
[1763407588956,23.12,130.1,130.0,3.37]
[1763407589456,0.05398543,130.06,130.04,0.0544953]
[1763407591162,0.05398543,130.06,130.04,3.4244953]
[1763407593659,8.68357502,130.14,130.05,3.53]
[1763407593860,23.12,130.13,130.05,3.53]
[1763407594659,23.12,130.15,130.05,3.53]
[1763407594860,0.05209808,130.1,130.08,3.58288653]
[1763407595058,0.05653744,130.1,130.08,3.58288653]
[1763407597862,23.12,130.17,130.08,3.58288653]
[1763407598059,23.12,130.17,130.08,3.53]
[1763407598762,0.04847185,130.14,130.11,0.0590777]
[1763407598962,0.04847185,130.14,130.11,3.5890777]
[1763407602556,0.04847185,130.14,130.11,0.0590777]
[1763407603767,0.04847185,130.14,130.11,3.5890777]
[1763407604164,0.04847185,130.14,130.11,0.0590777]
[1763407605667,0.04847185,130.14,130.11,3.5890777]
[1763407611168,23.12,130.17,130.11,3.5890777]
[1763407611480,23.12,130.23,130.11,3.5890777]
[1763407611672,23.12,130.25,130.11,3.53]
[1763407612373,0.04894811,130.19,130.17,3.58000877]
[1763407612571,23.12,130.25,130.17,3.58322739]
[1763407612773,23.12,130.25,130.17,3.53]
[1763407613474,45.8575613,130.25,130.17,3.53]
[1763407613674,45.8575613,130.25,130.2,3.58738061]
[1763407614378,45.8575613,130.25,130.2,0.05738061]
[1763407616181,23.12,130.23,130.2,0.05738061]
[1763407616583,0.44261939,130.16,130.14,3.53]
[1763407616878,23.12,130.23,130.14,3.53]
[1763407617782,0.05736068,130.2,130.18,3.53]
[1763407617986,0.04892035,130.2,130.18,3.58834892]
[1763407618977,0.04892035,130.2,130.18,0.05834892]
[1763407619184,24.70892035,130.2,130.12,3.53]
[1763407619477,23.12,130.2,130.12,3.53]
[1763407620177,0.05207788,130.17,130.16,3.53]
[1763407620479,0.04897358,130.18,130.16,3.53]
[1763407620672,0.04897358,130.18,130.16,3.58872992]
[1763407624580,0.04897358,130.18,130.16,0.05872992]
[1763407624777,0.04897358,130.18,130.16,3.34872992]
[1763407624982,0.04897358,130.18,130.16,0.05872992]
[1763407627680,0.04897358,130.18,130.16,3.34872992]
[1763407628280,23.12,130.23,130.16,3.34872992]
[1763407629286,0.05621682,130.21,130.16,3.34872992]
[1763407630387,23.17621682,130.21,130.16,0.05872992]
[1763407630688,23.12,130.18,130.16,0.05872992]
[1763407630881,23.17892403,130.18,130.16,0.05872992]
[1763407631077,0.05892403,130.18,130.16,3.34872992]
[1763407631489,0.05892403,130.18,130.16,0.05872992]
[1763407633786,23.12,130.17,130.1,3.29]
[1763407634790,0.0496481,130.15,130.13,3.29]
[1763407635284,15.32553067,130.26,130.13,3.29]
[1763407635285,54.70113828,130.23,130.13,3.29]
[1763407635487,54.70113828,130.23,130.14,3.29]
[1763407636081,23.12,130.22,130.17,0.05753218]
[1763407636278,0.04865395,130.2,130.17,0.05753218]
[1763407637192,23.12,130.19,130.11,3.29]
[1763407637392,23.12,130.16,130.11,3.29]
[1763407638190,0.05067873,130.15,130.12,0.05820758]
[1763407638994,0.05067873,130.15,130.13,3.54]
[1763407639195,64.05992917,130.23,130.13,3.54]
[1763407639389,54.70113828,130.23,130.13,3.54]
[1763407639897,64.05992917,130.23,130.13,3.54]
[1763407640192,0.05652547,130.19,130.17,0.05887684]
[1763407640994,24.71652547,130.19,130.1,3.54]
[1763407641194,23.12,130.19,130.1,3.54]